Cogmind - Beta 14 @@@ ROGUE MODE // 2024.08.28 @ 20:48:03 Player: Finestep Result: Destroyed by 3L-M25(R) with Subdweller Beam Cannon Performance ------------- Evolutions (0) 0 Regions Visited (2) 400 Robots Destroyed (29) 145 Value Destroyed (525) 525 Prototype IDs (0) 0 Alien Tech Used (0) 0 Bonus (0) 0 TOTAL SCORE: 1070 Bonus ------- None Cogmind --------- Core Integrity 0/250 Matter 251/300 Energy 250/250 System Corruption 0% Temperature Cool (9) Movement Treading (240) Ox1 Location -10/Subcaves Parts ------- > --- POWER (1) -------- Ion Engine > --- PROPULSION (2) --- Light Treads Light Treads > --- UTILITY (2) ------ High-capacity Storage Unit > --- WEAPON (2) ------- Light Assault Rifle Light Assault Rifle > --- INVENTORY (20) --- Ion Engine Light Treads Light Treads Light Treads Light Treads Wheel Wheel Wheel Compact Wheel Small Storage Unit Transport Network Coupler Utility Shielding Hacking Suite Medium Laser Beam Cannon Light Assault Rifle Mining Laser Peak State ------------ > --- POWER ------------ Light Ion Engine > --- PROPULSION ------- Light Treads Light Treads > --- UTILITY ---------- Small Storage Unit Improved Terrain Scanner > --- WEAPON ----------- Assault Rifle Assault Rifle > --- INVENTORY -------- Ion Engine Wheel Compact Wheel Medium Laser [Rating: 9] Favorites ----------- Power Ion Engine Engine Ion Engine Propulsion Light Treads Treads Light Treads Wheel Wheel Utility High-capacity Storage Unit Device Seismic Detector Storage High-capacity Storage Unit Weapon Assault Rifle Ballistic Gun Assault Rifle Special Weapon Mining Laser Build | -11 -10 -10 ------- Run | Yrd Mat Sub Slots Evolved . | . . . Power . | . . . Propulsion . | . . . Utility . | . . . Weapon . | . . . Parts Attached 27 | 7 14 6 Power 2 | 1 1 . Engine 2 | 1 1 . Core . | . . . Reactor . | . . . Propulsion 11 | 2 6 3 Treads 6 | 2 2 2 Leg . | . . . Wheel 5 | . 4 1 Hover . | . . . Flight . | . . . Utility 4 | 2 2 . Device 2 | 1 1 . Storage 2 | 1 1 . Processor . | . . . Hackware . | . . . Protection . | . . . Artifact . | . . . Weapon 10 | 2 5 3 Energy Gun . | . . . Energy Cannon . | . . . Ballistic Gun 8 | 2 4 2 Ballistic Cannon . | . . . Launcher . | . . . Special Weapon 2 | . 1 1 Impact Weapon . | . . . Slashing Weapon . | . . . Piercing Weapon . | . . . Special Melee Weapon . | . . . Unidentified Prototypes . | . . . Parts Lost 6 | . 2 4 Power 1 | . 1 . Propulsion 2 | . . 2 Utility 1 | . . 1 Weapon 2 | . 1 1 Highest Loss Streak 3 | . 1 3 To Critical Strikes . | . . . Average Slot Usage (%) 97 | . 99 87 Engine 13 | . 13 14 Treads 14 | . 14 14 Wheel 13 | . 13 13 Device 11 | . 14 2 Storage 14 | . 14 14 Ballistic Gun 27 | . 27 23 Peak Build Rating 9 | 9 9 9 Average Rating 7 | 5 8 8 On Entrance 6 | . 9 9 Naked Turns . | . . . Heaviest Build 50 | 13 50 49 Greatest Support 40 | 40 40 16 Greatest Overweight (x) 4 | 2 4 4 Average Overweight (x) 3 | . 3 2 Largest Inventory Capacity 20 | 8 20 20 Average Capacity 18 | 7 19 20 Most Carried 20 | 4 20 20 Average Carried 14 | 3 15 18 Final Capacity 20 | 8 20 20 Final Carried 20 | 4 20 17 Class Distribution -------------------- 100% | Mutant Dominant Class ---------------- Mutant | -10/Materials Mutant | -10/Subcaves Resources | -11 -10 -10 ----------- Run | Yrd Mat Sub Matter Collected 828 | 292 497 39 Remotely . | . . . Salvage Created 829 | 71 679 79 Parts 73 | 10 59 4 Haulers Intercepted 2 | . 2 . Recyclers Shooed 2 | 1 1 . Parts Field Recycled . | . . . Retrieved Matter . | . . . Parts Self-Destructed 9 | . . 9 Prevented . | . . . Kills | -11 -10 -10 ------- Run | Yrd Mat Sub Combat Hostiles Destroyed 16 | . 14 2 Guns 16 | . 14 2 Classes Destroyed 7 | 1 6 . Worker 3 | . 3 . Tunneler 4 | 3 1 . Hauler 2 | . 2 . Operator 1 | . 1 . Watcher 3 | . 3 . Swarmer 6 | . 6 . Grunt 10 | . 8 2 Best Kill Streak 6 | 1 6 2 Combat Bots Only 6 | . 6 2 Max Kills in Single Turn 2 | 1 2 1 Gunslinging 1 | . 1 . Exploded . | . . . Melee . | . . . Uniques/NPCs Destroyed . | . . . Combat | -11 -10 -10 -------- Run | Yrd Mat Sub Hostile Shots Fired 111 | . 72 39 Missed 27 | . 19 8 Damage Taken 980 | . 529 451 Core 274 | . 102 172 Absorbed by Shields . | . . . Core Remaining (%) 100 | 100 . . Volleys Fired 99 | 7 67 25 Largest 2 | 2 2 2 Hottest 100 | 40 100 100 Shots Fired 193 | 14 132 47 Gun 190 | 14 131 45 Cannon . | . . . Launcher . | . . . Special 3 | . 1 2 Kinetic 190 | 14 131 45 Thermal 3 | . 1 2 Explosive . | . . . Electromagnetic . | . . . Robot Hit Streak 12 | 3 7 12 Robot Miss Streak 4 | 2 4 2 Penetration Max . | . . . Secondary Targets 4 | . 4 . Max Gunslinging Chain 1 | . 1 . Shots Hit Robots 110 | 6 71 33 Core Hits 48 | 3 37 8 Critical Kills . | . . . Critical Parts Destroyed 1 | . 1 . Critical Strikes 1 | . 1 . Destroy 1 | . 1 . Melee Attacks . | . . . Impact . | . . . Slashing . | . . . Piercing . | . . . Sneak Attacks . | . . . Combat Hostiles . | . . . Follow-up Attacks . | . . . Damage Inflicted 1212 | 72 861 279 Guns 1207 | 72 856 279 Cannons . | . . . Explosions . | . . . Melee . | . . . Ramming 5 | . 5 . Kinetic 1207 | 72 856 279 Thermal . | . . . Explosive . | . . . Electromagnetic . | . . . Impact . | . . . Slashing . | . . . Piercing . | . . . Highest Corruption . | . . . Average Corruption . | . . . Corruption Purged . | . . . Corruption Blocked . | . . . Overload Shots . | . . . Overflow Damage . | . . . Projectiles . | . . . Explosions . | . . . Melee . | . . . Knockbacks . | . . . Impact . | . . . Kinetic . | . . . Secondary . | . . . Self-Inflicted Damage 2 | . 2 . Shots . | . . . Rammed 1 | . 1 . Targets Rammed 1 | . 1 . Kicked . | . . . Crushed . | . . . Highest Temperature 20 | . 20 7 Average Temperature 7 | . 7 7 Received Heat Transfer 429 | . 189 240 Siege Activations . | . . . Robots Corrupted . | . . . Combat Hostiles . | . . . Parts Fried . | . . . Impact Corruptions . | . . . Robots Melted . | . . . Combat Hostiles . | . . . Parts Melted . | . . . Heat Transferred . | . . . Parts Sabotaged . | . . . Parts Stolen . | . . . Parts Stripped . | . . . Power Chain Reactions . | . . . Alert | -11 -10 -10 ------- Run | Yrd Mat Sub Peak Influence 328 | 15 328 . Initial 9 | . 9 . Average 141 | 4 160 . Maximum Alert Level 1 | . 1 . Low Security (%) 74 | 100 70 . Level 1 25 | . 29 . Level 2 . | . . . Level 3 . | . . . Level 4 . | . . . Level 5 . | . . . High Security . | . . . Max Security . | . . . Squads Dispatched 3 | . 3 . Investigation . | . . . Extermination . | . . . Reinforcement 3 | . 3 . Assault . | . . . Garrison . | . . . Intercept . | . . . Searches Triggered . | . . . Construction Impeded . | . . . Haulers Reinforced . | . . . Active Scanning Responses . | . . . Cargo Convoy Interrupts . | . . . Stealth | -11 -10 -10 --------- Run | Yrd Mat Sub Distress Signals 2 | . 2 . Communications Jammed . | . . . Distress Signals . | . . . Times Spotted 29 | . 26 3 Peak Tracking Total 6 | . 6 2 Tactical Retreats 3 | . 3 . Traps | -11 -10 -10 ------- Run | Yrd Mat Sub Traps Triggered . | . . . Indirectly . | . . . Trap Hack Attempts . | . . . Triggered . | . . . Disarmed . | . . . Reprogrammed . | . . . Reused . | . . . Traps Extracted . | . . . Installed . | . . . Triggered . | . . . Machines | -11 -10 -10 ---------- Run | Yrd Mat Sub Machines Disabled . | . . . Max in Single Turn . | . . . Machines Repaired . | . . . Machines Dismantled . | . . . Machines Sabotaged . | . . . Overloaded Fab Kills . | . . . Hacking | -11 -10 -10 --------- Run | Yrd Mat Sub Machines Accessed 4 | . 4 . Terminals 4 | . 4 . Fabricators . | . . . Repair Stations . | . . . Recycling Units . | . . . Scanalyzers . | . . . Garrison Access . | . . . Total Hacks 11 | . 11 . Successful 1 | . 1 . Failed 10 | . 10 . Catastrophic 2 | . 2 . Database Lockouts . | . . . Manual 5 | . 5 . Terminals 11 | . 11 . Fabricators . | . . . Repair Stations . | . . . Recycling Units . | . . . Scanalyzers . | . . . Garrison Access . | . . . Terminal Hacks 1 | . 1 . Registered Components 1 | . 1 . Fabricator Hacks . | . . . Repair Station Hacks . | . . . Recycling Unit Hacks . | . . . Scanalyzer . | . . . Garrison Access Hacks . | . . . Unauthorized Hacks . | . . . Terminals . | . . . Fabricators . | . . . Repair Stations . | . . . Recycling Units . | . . . Scanalyzers . | . . . Garrison Access . | . . . Data Cores Recovered . | . . . Used . | . . . Hacking Detections 4 | . 4 . Full Trace Events . | . . . Feedback Events . | . . . Feedback Blocked . | . . . Robot Schematics Acquired . | . . . Robots Built . | . . . Authchips . | . . . Time . | . . . Total Robot Build Rating . | . . . Part Schematics Acquired . | . . . Parts Built . | . . . Authchips . | . . . Time . | . . . Total Part Build Rating . | . . . Parts Repaired . | . . . Time . | . . . Parts Recycled . | . . . Recycled Matter . | . . . Retrieved Matter . | . . . Retrieved Components . | . . . Parts Scanalyzed . | . . . Part Schematics Acquired . | . . . Parts Damaged . | . . . Bothacking | -11 -10 -10 ------------ Run | Yrd Mat Sub Used RIF Installer . | . . . Robots Hacked . | . . . Non-combat . | . . . Combat . | . . . Robot Hacks Applied . | . . . Relay Couplers Released . | . . . Fabnet Peak Effective % . | . . . Robots Rewired . | . . . Allies Hacked . | . . . Hacks Repelled . | . . . Allies | -11 -10 -10 -------- Run | Yrd Mat Sub Total Allies . | . . . Largest Group . | . . . Highest-Rated Group . | . . . Highest-Rated Ally . | . . . Total Orders . | . . . Ally Attacks . | . . . Total Damage . | . . . Kills . | . . . Allies Corrupted . | . . . Allies Melted . | . . . Intel | -11 -10 -10 ------- Run | Yrd Mat Sub Robot Analysis Total . | . . . Derelict Logs Recovered 1 | . . 1 Drone Launches . | . . . Drone Recoveries . | . . . Exploration | -11 -10 -10 ------------- Run | Yrd Mat Sub Turns Passed 1714 | 172 1240 302 Spaces Moved 964 | 88 704 172 Core 9 | 9 . . Treads 107 | 79 28 . Legs . | . . . Wheels 848 | . 676 172 Hover . | . . . Flight . | . . . Fastest Speed 50 | 50 140 130 Average Speed 141 | 154 141 130 Slowest Speed 240 | 160 240 140 Overloaded Moves . | . . . Propulsion Burnouts . | . . . Robots Hopped . | . . . Cave-ins Triggered . | . . . Exploration Rate (%) 40 | 6 97 17 Regions Visited 2 Branch Regions 1 Pre-discovered Areas . | . . . Known Exits Taken . | . . . Unknown Exits Taken 2 | 1 1 . Scrap Searched . | . . . Spaces Dug 1 | . 1 . Terrain Destroyed 1 | . 1 . Melee . | . . . Projectile 1 | . 1 . AOE . | . . . Terrain Rammed . | . . . Walls Destroyed . | . . . Machines Disabled . | . . . Actions | -11 -10 -10 --------- Run | Yrd Mat Sub Total 1123 | 107 809 207 Wait 16 | 2 10 4 Move 962 | 87 703 172 Hop . | . . . Pick Up 16 | 4 12 . Fast Attach 10 | 7 3 . Attach 4 | . 1 3 Detach . | . . . Swap 13 | . 10 3 Drop 2 | . 2 . Fire 99 | 7 67 25 Melee . | . . . Ram 1 | . 1 . Kick . | . . . Crush . | . . . Escape Stasis . | . . . Rewire . | . . . Trap . | . . . Miscellaneous . | . . . Route ------- -11/Scrapyard -10/Materials (discovered 6 exits: [*Mat x3] / [*Min x2] / [*Sub]) -10/Subcaves History --------- Turn | Location | Event 11 | -11/Scrapyard | Discovered new exit (range 15) 173 | -11/Scrapyard | Entered Materials 316 | -10/Materials | Build established: Mutant 452 | -10/Materials | Discovered new exit (range 8) 606 | -10/Materials | Discovered new exit (range 15) 898 | -10/Materials | Discovered new exit (range 6) 930 | -10/Materials | Discovered new exit (range 15) 1332 | -10/Materials | Discovered new exit (range 5) 1392 | -10/Materials | Discovered new exit (range 16) 1413 | -10/Materials | Entered Subcaves 1419 | -10/Subcaves | Learned Materials emergency access door positions 1435 | -10/Subcaves | Core integrity fell below 50% 1453 | -10/Subcaves | Core integrity fell below 20% 1500 | -10/Subcaves | Lost 3 parts (1n1u1w) 1715 | -10/Subcaves | Destroyed by 3L-M25(R) with Subdweller Beam Cannon Last Messages --------------- 01392_ EXIT=FOUND LOCATION=UNKNOWN AMBIENT_HEAT=-10 GOAL=ESCAPE 01419_ Acquired derelict log, extracted data. Data stored: Materials emergency access points. 01433_ Assault Rifle destroyed. 01434_ Critical hit (Burn: +37). 01453_ G-47 Trooper destroyed. 01463_ Imp. Heat Sink fries itself beyond repair. 01463_ Wheel destroyed. 01469_ Seismic Detector destroyed. 01471_ G-34 Mercenary destroyed. 01474_ Subatomizers dissect the Ion Engine. 01476_ Aluminum Leg fries itself beyond repair. 01482_ Acquired 39 matter. 01485_ Ion Engine fries itself beyond repair. 01486_ Subatomizers dissect the Aluminum Leg. 01488_ Aluminum Leg fries itself beyond repair. 01701_ Lgt. Treads destroyed. Map ----- +----------------------------------------------------+ | ?????????????????????????????????????????????????? | | ?????????????????????????????????????????????????? | | ?????????????????????????????????????????????????? | | ?????????????????????????????????????????????????? | | ?????????????????????????????????????????????????? | | ????????????????????????????####?????????????????? | | ????????????????????????????# #????????????????? | | ?????????????????????????????# ####????????????? | | ????????????????????????# #### ##??####?????? | | ?????????????????? ### #?????? | | ?????????????????? ### #??????? | | ?????????????????? # ## ?????## #??????? | | ??????????????????? ???????????# #??????? | | ??????????????????## ???????????# ###????? | | ??????????????????# ?????????# ### ##???? | | ??????????????????# ?????????# ##?# ### ##??? | | ??????????????????#% ###?????# #??## ##? ##?? | | ????????????????### ???#####???# ## ### | | ????????????????# ??## ##???# | | ????????????????# ?## ###?## | | ????????????????? ## ##?## ## | | ?????????????????? #??## ""##""" | | ???????????????????? #???## # | | ??????????????????????# #??## # | | ??????????? ## #### """ # | | ??????????????????# @ R ## """ # | | ??????????????????## #### #### """"# | | ??????????????????????????## # #####??## # | | ????????????????????????#### # #??????# # | | ???????????????????????## ## ####### | | ???????????????????????# ### """ | | ?????????????????????? ##??## ## ##""" " | | ???????????????????? ## ##????######?#"" ## | | ???????????????????# ##?## ###????????## ### | | ???????????????????# ?????# ##???????# """ #? | | ???????????????????# ??????# #?#####?# ##? | | ???????????????????#???????# #### ### ## | | ???????????????????????????## #?# ## # | | ????????????????????????????## ### ## | | ?????????????????????????????# # ##? | | ?????????????????????????????# ## ###?? | | ????????????????????????##???# ### #???? | | ???????????????????????## ??# ### ## #???? | | ???????????????????????# ?# #####???? | | ????????????????????????# ## #???????? | | ????????????????????????# ##??????? | | ???????????????????????## #??????? | | ???????????????????????# ## #?????? | | ???????????????? #### #????? | | ???????????????? ## ##???# #????? | +----------------------------------------------------+ Best States ------------- Heat Dissipation 25 Energy Generation 10 Energy Capacity 250 Matter Stores 300 Matter Capacity 300 Sight Range 16 Terrain Scan Range 16 Terrain Scan Density 10 Evasion (%) 40 Recoil Reduction 2 Item Schematics ----------------- None Robot Schematics ------------------ None Fabricated ------------ Nothing Alien Tech Used ----------------- None Achievements -------------- None Challenges ------------ None Game ------ Seed AngularStormEngine Manual? 0 Play Time 00:08:13 Cumulative 687.3 hours Start 2024.08.28 @ 20:41:16 End 2024.08.28 @ 20:48:03 Sessions 1 Manual Loads 0 Difficulty Rogue Special Mode None Game No. 430 Rogue 430 Adventurer 0 Explorer 0 Win Type - Total 9 Types 6/0/1/1/1/0/0/0/0 Lore% 54 Gallery% 82 Achievement% 75 Wizard Run 0 Options --------- Layout 0 ASCII 0 Keyboard 0 Movement Mouse Keybinds 1 Fullscreen 2 Font 24/Smallcaps Map View 76x50 Zoom Use 0% Tactical HUD 1 Map Filters NONE Filters NONE Steam 1 RUN: f6725f9a-1dbd-4884-abd9-946b5b85f9f3